[Event "SVK ECo-C Extraliga 2021-22"]
[Site "Slovakia"]
[Date "2022.05.09"]
[Round "8.2"]
[White "Michalik, Peter"]
[Black "Hujbert, Florian"]
[Result "1-0"]
[ECO "B32"]
[WhiteElo "2579"]
[BlackElo "2396"]
[Annotator "TA"]
[PlyCount "105"]
[EventDate "2021.10.21"]
[EventType "team-tourn"]
[EventCountry "SVK"]
[SourceTitle "playchess.com"]
[Source "ChessBase"]
[SourceQuality "1"]
[TimeControl "40/5400+30:1800+30"]

{[%evp 10,105,33,23,35,25,25,23,38,26,37,34,28,25,33,23,37,35,78,74,68,95,86,85,80,91,85,60,77,74,94,97,109,127,116,106,113,127,115,125,107,105,108,118,138,117,91,74,122,98,104,99,99,89,126,127,129,130,124,94,143,143,200,195,202,204,215,222,345,343,341,339,342,326,329,325,429,418,1279,1279,1468,1462,1241,1265,1289,1169,926,885,2233,2011,1605,1672,29974,29974,29975,29976,29976,29977]} 1. e4 {[%emt 0:00:04]} c5 {[%emt 0:00:09]} 2. Nf3 {[%emt 0:00:05][%cal Bg1f3,Bf3d4,Bd4b5,Bb5a3,Ba3c2][%mdl 32]} Nc6 {[%emt 0:00:05]} 3. d4 {[%emt 0:00:09]} cxd4 {[%emt 0:00:03]} 4. Nxd4 {[%emt 0:00:06]} e5 {[%emt 0:00:04]} 5. Nb5 {[%emt 0:00:18]} d6 {[%emt 0:00:07]} 6. c4 {[%emt 0:01:06]} g6 {[%emt 0:00:46] 6...Be6 is setting a new trend. B32: Sicilian: Löwenthal and Kalashnikov Variations.} 7. N1c3 {[%emt 0:09:53]} a6 {[%emt 0:00:42]} 8. Na3 {[%emt 0:00:07]} Bg7 {[%emt 0:00:26] White has an edge.} 9. Nc2 {[%emt 0:08:27]} Be6 {[%emt 0:00:49]} 10. Be3 {[%emt 0:00:26]} Nf6 {[%emt 0:01:44]} 11. f3 {[%emt 0:03:28]} O-O {[%emt 0:04:07]} 12. Qd2 {[%emt 0:00:05]} Rc8 {[%emt 0:03:55] [#]} 13. Rd1 $146 {[%emt 0:03:48]} ({Predecessor:} 13. b3 Qa5 14. Be2 Nh5 15. g3 Nf4 16. Nd5 Ng2+ 17. Kf2 Nxe3 18. Qxa5 Nxc2 19. Qd2 Nxa1 20. Rxa1 {0-1 (38) Al Tarbosh,W (2221)-Fawzy,A (2476) Chess.com INT 2022}) 13... Ne7 {[%emt 0:19:40]} 14. Qxd6 {[%emt 0:09:02]} Qxd6 {[%emt 0:01:55]} 15. Rxd6 {[%emt 0:00:06]} Bxc4 {[%emt 0:00:06]} 16. Bxc4 {[%emt 0:00:06]} Rxc4 {[%emt 0:00:07]} 17. Ke2 {[%emt 0:00:06]} Nc8 {[%emt 0:17:15]} 18. Rd3 {[%emt 0:02:22]} Re8 {[%emt 0:00:18]} 19. Rhd1 {[%emt 0:01:39]} Bf8 {[%emt 0:01:11]} 20. Bg5 {[%emt 0:06:37]} Be7 {[%emt 0:07:39][%cal Of6e4]} 21. Bxf6 {[%emt 0:01:02]} Bxf6 {[%emt 0:00:04]} 22. Rd7 {[%emt 0:01:40]} b5 {[%emt 0:01:00]} 23. Ne3 {[%emt 0:00:16]} Rc6 {[%emt 0:01:15]} 24. Ncd5 {[%emt 0:00:46]} Bg5 {[%emt 0:12:40]} 25. Nb4 {[%emt 0:07:21] Pair of Knights!} Rce6 {[%emt 0:00:53]} 26. Rc7 {[%emt 0:07:27]} Nb6 {[%emt 0:13:40]} 27. Ned5 {[%emt 0:02:40]} Nxd5 {[%emt 0:01:04]} 28. Rxd5 {[%emt 0:01:03]} R8e7 {[%emt 0:03:41]} ({Black should try} 28... Be7 29. Nd3 Bf8) 29. Rd8+ {[%emt 0:03:29]} Kg7 {[%emt 0:00:17]} 30. Rcc8 $36 {[%emt 0:00:16][%mdl 2048] Hoping for g3. White is on the roll.} f5 {[%emt 0:02:41]} 31. g3 {[%emt 0:02:14] Black must now prevent h4.} fxe4 {[%emt 0:01:34]} 32. fxe4 {[%emt 0:00:07]} Rf7 {[%emt 0:00:28]} 33. Rg8+ {[%emt 0:00:10]} Kh6 {[%emt 0:00:06]} 34. Nd5 {[%emt 0:00:32] Inhibits Ref6.} Kh5 {[%emt 0:01:09]} (34... Bf6 $142) 35. h3 $16 {[%emt 0:01:48]} Bh6 {[%emt 0:00:38]} (35... Kh6 $16 36. h4 Bf6) 36. Rge8 $18 {[%emt 0:03:12] Active counter play!} Rxe8 {[%emt 0:01:34]} 37. Rxe8 {[%emt 0:00:06][%mdl 4096] Endgame KRB-KRN} Bg7 {[%emt 0:00:03]} 38. Ra8 {[%emt 0:00:15] Inhibits Ra7.} Bf8 {[%emt 0:01:47]} (38... Bh6 $142 39. Rxa6 Bc1) 39. b4 {[%emt 0:01:05]} ({Not} 39. Rxa6 Kg5 40. b4 Rb7 $18) 39... Kg5 {[%emt 0:01:47]} 40. Rxa6 {[%emt 0:00:31]} h5 {[%emt 0:00:06]} 41. a3 {[%emt 0:33:52]} h4 {[%emt 0:32:52]} 42. g4 {[%emt 0:03:02]} Rb7 {[%emt 0:00:09]} 43. Re6 {[%emt 0:02:07]} Bg7 {[%emt 0:00:00]} (43... Ra7 $142 44. Rxe5+ Kh6 45. g5+ Kg7) 44. Re7 {[%emt 0:00:00]} Rxe7 {[%emt 0:00:00]} 45. Nxe7 {[%emt 0:00:00] KB-KN} Kf4 {[%emt 0:00:00]} 46. Nxg6+ {[%emt 0:00:00]} Kxe4 {[%emt 0:00:00]} 47. Nxh4 {[%emt 0:00:00]} Bh6 {[%emt 0:00:00]} 48. Nf5 {[%emt 0:00:00]} Bc1 {[%emt 0:00:00]} 49. Nd6+ {[%emt 0:00:00]} Kd5 {[%emt 0:00:00]} 50. Nxb5 {[%emt 0:00:00]} Kc4 {[%emt 0:00:00]} 51. Nc7 {[%emt 0:00:00] White mates.} Bxa3 {[%emt 0:00:00]} 52. b5 {[%emt 0:00:00]} Kc5 {[%emt 0:00:00]} 53. g5 {[%emt 0:00:00] Weighted Error Value: White=0.04 (flawless) /Black=0.39} 1-0

[Event "SVK ECo-C Extraliga 2021-22"]
[Site "Slovakia"]
[Date "2022.05.09"]
[Round "8.2"]
[White "Bagi, Mate"]
[Black "Mrva, Martin"]
[Result "0-1"]
[ECO "B07"]
[WhiteElo "2466"]
[BlackElo "2384"]
[Annotator "TA"]
[PlyCount "134"]
[EventDate "2021.10.21"]
[EventType "team-tourn"]
[EventCountry "SVK"]
[SourceTitle "playchess.com"]
[Source "ChessBase"]
[SourceQuality "1"]
[TimeControl "40/5400+30:1800+30"]

{[%evp 9,134,47,58,64,70,52,71,51,58,49,75,78,76,67,85,80,91,78,109,98,107,89,95,99,102,65,66,0,10,5,79,93,93,0,0,-5,4,0,0,0,0,0,8,0,43,0,0,0,0,0,0,-36,-37,-99,-77,-96,-89,-116,-96,-183,-104,-197,-191,-312,-187,-187,-14,0,0,0,0,-150,0,-31,-32,-49,0,0,0,0,0,0,0,0,0,0,8,0,0,-21,-22,-20,-20,-27,-5,-12,-6,-6,0,0,0,0,0,0,0,0,0,0,0,0,0,-12838,0,0,0,0,0,0,0,0,0,0,0,-12849,-12849,-12850,-12847]} 1. e4 {[%emt 0:00:11]} d6 {[%emt 0:00:06]} 2. d4 {[%emt 0:00:15]} a6 {[%emt 0:00:06]} 3. Nf3 {[%emt 0:02:37]} Nf6 {[%emt 0:00:16]} 4. Bd3 {[%emt 0:01:33]} Nc6 {[%emt 0:03:03]} 5. c3 {[%emt 0:05:21]} h6 {[%emt 0:13:34]} 6. Nbd2 {[%emt 0:03:25] B07: Pirc Defence: Miscellaneous Systems.} e5 {[%emt 0:01:43]} 7. h3 {[%emt 0:03:45] [#]} exd4 $146 {[%emt 0:02:47]} ({Predecessor:} 7... g5 8. dxe5 dxe5 9. Nc4 Bd6 10. Ne3 Be6 11. Qc2 Qd7 12. Be2 Ne7 13. Nc4 Ng6 {1-0 (24) Alekseev,E (2602)-Protsenko,N (2024) Rostov on Don 2021}) 8. cxd4 {[%emt 0:00:58] White is better.} (8. Nxd4 Ne5 9. Bc2 c5 $11) 8... d5 {[%emt 0:00:17]} 9. e5 {[%emt 0:03:21]} Nh7 {[%emt 0:00:38]} 10. a3 {[%emt 0:12:40]} Ng5 {[%emt 0:20:58]} 11. b4 {[%emt 0:02:15]} Ne6 {[%emt 0:07:13]} 12. Nb3 {[%emt 0:00:25]} Be7 {[%emt 0:02:18]} 13. Be3 {[%emt 0:03:09]} g5 {[%emt 0:06:46]} 14. g3 {[%emt 0:10:44]} Ng7 {[%emt 0:05:49]} 15. Qc2 {[%emt 0:03:23]} Be6 {[%emt 0:02:38]} 16. h4 {[%emt 0:13:24] And now hxg5 would win.} g4 {[%emt 0:10:29]} 17. Nfd2 {[%emt 0:01:19]} Qd7 {[%emt 0:00:55]} 18. Bf1 {[%emt 0:10:22]} (18. O-O $14) 18... Bf5 {[%emt 0:01:21]} 19. Qc3 {[%emt 0:01:01]} f6 {[%emt 0:02:30]} (19... Ne6 $11 {remains equal.}) 20. exf6 $1 $16 {[%emt 0:00:55]} Bxf6 {[%emt 0:00:05]} 21. Bg2 {[%emt 0:01:37]} (21. Nc5 $1 $16 {[%cal Rc5d7]} Qe7 22. Ndb3) 21... Ne6 $11 {[%emt 0:02:49] ...0-0-0 is the strong threat.} 22. O-O {[%emt 0:01:09]} Rd8 {[%emt 0:04:19]} 23. Rae1 {[%emt 0:09:53]} (23. Nc5 $5 {[%cal Rc5d7]} Ncxd4 24. Kh1 $11) 23... O-O {[%emt 0:00:10]} 24. Nc5 {[%emt 0:02:25]} (24. Bxh6 Ncxd4 $1 25. Qc1 Rf7 26. Nxd4 Nxd4 $15) 24... Nxc5 {[%emt 0:00:19]} 25. bxc5 {[%emt 0:00:06]} Qg7 {[%emt 0:01:55][%cal Rc6d4]} 26. Nb3 {[%emt 0:00:21]} Rfe8 {[%emt 0:01:25]} 27. Bf4 {[%emt 0:03:17][%cal Og2d5]} (27. Qd2 $5 {[%cal Re3h6]}) 27... Rxe1 {[%emt 0:04:56]} 28. Rxe1 {[%emt 0:00:03]} Nxd4 {[%emt 0:00:16]} 29. Nxd4 {[%emt 0:00:11]} Bxd4 {[%emt 0:00:05]} 30. Qb3 {[%emt 0:00:13]} (30. Qc1 $5 {[%cal Rf4h6]}) 30... c6 $36 {[%emt 0:00:49][%mdl 2048] Black is more active.} 31. Bd6 {[%emt 0:00:20]} (31. Be4 $1 $15 Bxe4 32. Rxe4) 31... Rd7 {[%emt 0:01:41]} 32. Kh2 {[%emt 0:03:56]} Rf7 {[%emt 0:00:31]} (32... Bxf2 33. Rf1 $16) 33. Re2 {[%emt 0:00:27]} Kh7 {[%emt 0:00:25]} 34. Qd1 {[%emt 0:01:04]} (34. f4 $17) 34... h5 {[%emt 0:00:23]} ({Black should try} 34... Bg6 $1 $19 35. Ra2 Bxf2 36. Qxg4 Qd4 37. Qxd4 Bxd4) 35. Qd2 {[%emt 0:00:28]} (35. f4 $17 {was called for.}) 35... Bg6 $19 {[%emt 0:00:33]} 36. Qg5 {[%emt 0:00:41]} (36. Qe1 {was necessary.}) 36... Qf6 {[%emt 0:00:41]} ({Wrong is} 36... Bxf2 $2 37. Be5 Qh6 38. Qxh6+ Kxh6 39. Bf4+ Rxf4 40. gxf4 Bxc5 41. Rb2 $19) (36... Rxf2 $142 37. Re7 Rf7) 37. Qd2 {[%emt 0:00:27]} b6 $2 {[%emt 0:01:15]} (37... Bc3 $19 38. Qc1 Ba1) 38. cxb6 $11 {[%emt 0:01:12]} Bxb6 {[%emt 0:00:38]} (38... Qxd6 39. Qxd4 Re7 40. Qf4 $18) 39. Be5 {[%emt 0:00:04]} Qd8 {[%emt 0:01:17]} 40. Kg1 {[%emt 0:00:55] [#]} (40. Bf4 $11) 40... Qf8 {[%emt 0:01:23]} ({Black should play} 40... d4 $1 $17 {[%cal Rd4d3]} 41. Bf4 (41. Bxc6 $2 d3 $19) 41... d3) 41. Qb2 {[%emt 0:03:17]} Qc5 {[%emt 0:03:04]} 42. Bf4 {[%emt 0:05:01] [#]} Qb5 {[%emt 0:04:35]} (42... Rxf4 $1 $15 43. gxf4 g3) 43. Qxb5 {[%emt 0:03:20]} axb5 {[%emt 0:00:07]} 44. Re6 {[%emt 0:00:05]} Bc5 {[%emt 0:12:39]} 45. Rxc6 {[%emt 0:01:43]} Bxa3 {[%emt 0:00:08]} 46. Bxd5 {[%emt 0:03:05]} Rd7 {[%emt 0:00:08]} 47. Bb3 {[%emt 0:05:33]} Bf8 {[%emt 0:00:08]} 48. Be5 {[%emt 0:02:59]} Be4 {[%emt 0:03:34]} 49. Rc7 {[%emt 0:03:06]} Rxc7 {[%emt 0:00:50]} 50. Bxc7 {[%emt 0:00:05][%mdl 4096] Endgame KBB-KBB} Kg6 {[%emt 0:00:18]} 51. Kf1 {[%emt 0:00:53]} Bc5 {[%emt 0:00:33]} 52. Be5 {[%emt 0:00:33]} Bd3+ {[%emt 0:02:07]} 53. Ke1 {[%emt 0:00:52]} Bc4 {[%emt 0:00:48]} 54. Bc2+ {[%emt 0:00:20]} Kf7 {[%emt 0:00:05]} 55. Be4 {[%emt 0:00:40]} b4 {[%emt 0:01:15]} 56. f3 {[%emt 0:01:45]} Ke6 {[%emt 0:01:27]} 57. Bb2 {[%emt 0:00:53]} Bd5 {[%emt 0:00:07]} 58. Bxd5+ {[%emt 0:03:12]} Kxd5 {[%emt 0:00:04]} 59. fxg4 {[%emt 0:00:25]} hxg4 {[%emt 0:00:05] KB-KB} 60. Bg7 $2 {[%emt 0:01:02][%mdl 8192]} (60. h5 $11 Be3 61. Kd1) 60... b3 $2 {[%emt 0:01:47]} (60... Bd6 $19 61. h5 Bxg3+ 62. Kd1 Ke6) 61. h5 {[%emt 0:00:41] Strongly threatening h6.} Be3 {[%emt 0:00:11]} 62. Ke2 {[%emt 0:00:45]} Ke4 {[%emt 0:00:37]} 63. Bb2 {[%emt 0:00:32]} Bh6 {[%emt 0:00:24]} 64. Bc3 {[%emt 0:00:10]} Bc1 {[%emt 0:02:24]} 65. Kd1 {[%emt 0:00:25]} Ba3 {[%emt 0:00:46]} 66. h6 $2 {[%emt 0:00:37][%mdl 8192]} (66. Kd2 $11 Kf5 67. Bd4 (67. h6 $2 Kg6 $19)) 66... Kd3 $19 {[%emt 0:00:06]} (66... b2 $2 67. Kc2 Kf3 68. h7 $18) 67. Ke1 {[%emt 0:01:38]} Bb4 {[%emt 0:00:25] Weighted Error Value: White=0.34/Black=0.31} (67... Kxc3 $2 68. h7 Kc4 69. h8=Q $18) 0-1

[Event "SVK ECo-C Extraliga 2021-22"]
[Site "Slovakia"]
[Date "2022.05.08"]
[Round "8.2"]
[White "Cernousek, Lukas"]
[Black "Zilka, Stepan"]
[Result "1/2-1/2"]
[ECO "D37"]
[WhiteElo "2451"]
[BlackElo "2609"]
[Annotator "TA"]
[PlyCount "25"]
[EventDate "2021.10.21"]
[EventType "team-tourn"]
[EventCountry "SVK"]
[SourceTitle "playchess.com"]
[Source "ChessBase"]
[SourceQuality "1"]
[TimeControl "40/5400+30:1800+30"]

{[%evp 9,25,20,36,29,30,28,39,26,35,14,31,20,21,23,33,15,14,13]} 1. d4 {[%emt 0:00:04]} d5 {[%emt 0:00:11]} 2. c4 {[%emt 0:00:11]} e6 {[%emt 0:00:07]} 3. Nf3 {[%emt 0:00:16]} Nf6 {[%emt 0:02:39]} 4. Nc3 {[%emt 0:00:08]} h6 {[%emt 0:00:52]} 5. g3 {[%emt 0:05:27]} Nbd7 {[%emt 0:04:18]} 6. Bg2 {[%emt 0:00:30] D37: Queen's Gambit Declined: 5 Bf4.} Be7 {[%emt 0:00:58]} 7. O-O {[%emt 0:00:16]} O-O {[%emt 0:00:12]} 8. Ne5 {[%emt 0:07:50] White is slightly better.} c6 {[%emt 0:02:30]} 9. e4 {[%emt 0:00:15]} Nxe4 {[%emt 0:08:46]} 10. Nxe4 {[%emt 0:02:02]} dxe4 {[%emt 0:00:09]} 11. Bxe4 {[%emt 0:01:10] [#]} f5 $146 {[%emt 0:08:24] [#] White must now prevent ...Nxe5.} ({Predecessor:} 11... Nxe5 12. dxe5 Qxd1 13. Rxd1 Rd8 14. Rxd8+ Bxd8 15. Be3 Kf8 16. Rd1 Ke8 17. b4 a6 {1-0 (36) Dimitrijevic,A (2164)-Attieh,W (1823) Beirut 2019}) 12. Bg2 {[%emt 0:06:33]} Nxe5 {[%emt 0:01:30]} 13. dxe5 {[%emt 0:00:12] Weighted Error Value: White=0.06 (flawless) /Black=0.04 (flawless)} 1/2-1/2

[Event "SVK ECo-C Extraliga 2021-22"]
[Site "Slovakia"]
[Date "2022.05.08"]
[Round "8.2"]
[White "Pulpan, Jakub"]
[Black "Kraus, Tomas"]
[Result "1/2-1/2"]
[ECO "A06"]
[WhiteElo "2418"]
[BlackElo "2477"]
[Annotator "TA"]
[PlyCount "120"]
[EventDate "2021.10.21"]
[EventType "team-tourn"]
[EventCountry "SVK"]
[SourceTitle "playchess.com"]
[Source "ChessBase"]
[SourceQuality "1"]
[TimeControl "40/5400+30:1800+30"]

{[%evp 9,120,0,0,0,0,0,0,0,0,0,0,0,0,-10,-5,-9,-8,-18,-18,-11,-19,-71,-63,-61,-61,-57,-54,-70,-70,-70,-58,-56,-39,-45,-40,-46,-12,-21,-27,-23,-27,-43,-43,-43,-43,-43,-43,-43,-43,-43,-43,-43,-43,-43,-43,-67,-67,-67,-67,-67,-44,-44,0,0,0,0,0,-59,-59,-59,-60,-8,0,-8,0,0,0,0,0,-91,-91,-96,0,0,0,-100,0,0,0,0,0,0,0,0,0,0,0,0,0,0,0,0,0,0,0,0,0,0,0,0,0,0,0]} 1. Nf3 {[%emt 0:00:11]} d5 {[%emt 0:01:14]} 2. b3 {[%emt 0:00:26]} Bf5 {[%emt 0:01:18]} 3. Bb2 {[%emt 0:00:56]} e6 {[%emt 0:00:51]} 4. e3 {[%emt 0:00:55]} Nf6 {[%emt 0:00:54]} 5. d4 {[%emt 0:04:37]} Nbd7 {[%emt 0:01:32]} 6. Nbd2 {[%emt 0:07:15] D04: Colle System.} Bd6 {[%emt 0:05:02]} 7. Be2 {[%emt 0:05:01]} h6 {[%emt 0:01:16]} 8. O-O {[%emt 0:01:10]} Qe7 {[%emt 0:03:19]} 9. Ne5 {[%emt 0:04:41]} O-O {[%emt 0:04:52]} 10. c4 {[%emt 0:22:34]} c6 {[%emt 0:03:51]} 11. a3 {[%emt 0:04:05]} a5 {[%emt 0:02:54] [#]} 12. Bf3 $146 {[%emt 0:03:44]} ({Predecessor:} 12. Qc1 Ne4 13. Nxe4 Bxe4 14. f3 Bh7 15. Nxd7 Qxd7 {½-½ (15) Piskov,Y (2452)-Shumiakina,T (2363) Hoogeveen 2006}) 12... Rfd8 {[%emt 0:02:29][%cal Bf8d8,Bd8d7,Bd7c7][%mdl 32]} 13. Nxd7 {[%emt 0:07:07]} Rxd7 {[%emt 0:07:15]} 14. Re1 {[%emt 0:01:06]} b5 {[%emt 0:13:39]} 15. cxb5 {[%emt 0:07:14]} (15. c5 $11 Bb8 16. Be2) 15... cxb5 $17 {[%emt 0:00:11]} 16. Qe2 {[%emt 0:02:14]} Rc7 {[%emt 0:04:05]} 17. e4 {[%emt 0:12:56]} dxe4 {[%emt 0:09:04]} (17... Nxe4 {is interesting.} 18. Bxe4 dxe4 19. Nxe4 Rac8) 18. Bxe4 {[%emt 0:00:26]} Nxe4 {[%emt 0:05:08]} 19. Nxe4 {[%emt 0:00:18]} Bxe4 {[%emt 0:01:58]} 20. Qxe4 {[%emt 0:00:05]} Rd8 {[%emt 0:00:02]} 21. g3 {[%emt 0:02:55]} Qg5 {[%emt 0:06:04]} 22. h4 {[%emt 0:02:58]} Qh5 {[%emt 0:02:10]} 23. Rac1 {[%emt 0:00:49]} Rdc8 {[%emt 0:01:33]} 24. Rxc7 {[%emt 0:01:09]} Rxc7 {[%emt 0:00:51]} 25. Kg2 {[%emt 0:02:49]} Qd5 {[%emt 0:04:22]} 26. Qxd5 {[%emt 0:04:16]} exd5 $15 {[%emt 0:00:02][%mdl 4096] Endgame KRB-KRB} 27. Rc1 {[%emt 0:01:18] Inhibits Rc2.} a4 {[%emt 0:02:09] Hoping for ...Rxc1.} 28. Rxc7 {[%emt 0:00:35]} Bxc7 {[%emt 0:00:04] KB-KB} 29. b4 {[%emt 0:00:10]} h5 {[%emt 0:00:38]} 30. Bc1 {[%emt 0:00:55]} Kh7 {[%emt 0:00:24]} 31. f3 {[%emt 0:00:33][%cal Bf2f3,Bf3f4][%mdl 32]} Kg6 {[%emt 0:02:45]} 32. f4 {[%emt 0:00:12]} Kf5 {[%emt 0:00:39]} 33. Kf3 {[%emt 0:00:01]} Bb6 {[%emt 0:04:19]} 34. Be3 {[%emt 0:00:01]} f6 {[%emt 0:01:14]} 35. Bf2 {[%emt 0:01:42]} g5 {[%emt 0:00:20]} 36. fxg5 $1 {[%emt 0:00:29]} fxg5 {[%emt 0:00:01]} 37. hxg5 {[%emt 0:00:20]} Kxg5 {[%emt 0:00:03]} 38. Be3+ {[%emt 0:00:40]} (38. Bg1 $1 $11) 38... Kf5 {[%emt 0:00:07]} 39. Bf2 {[%emt 0:00:20]} Bd8 $1 {[%emt 0:03:36]} 40. Be3 {[%emt 0:00:34]} Be7 {[%emt 0:00:53]} 41. Bf2 {[%emt 0:09:09]} Bf8 {[%emt 0:16:55]} 42. Be3 {[%emt 0:02:46]} Bg7 {[%emt 0:00:14]} 43. Bg1 {[%emt 0:03:50]} Bh8 {[%emt 0:00:37]} 44. Be3 {[%emt 0:00:30]} (44. Bf2 $1 $11 {keeps the balance.}) 44... Bf6 $17 {[%emt 0:00:04]} 45. Bf2 {[%emt 0:00:40] [#]} Bg5 {[%emt 0:01:05]} (45... Kg6 $1 $17 46. Be3 h4 47. gxh4 Bxh4) 46. Be3 $11 {[%emt 0:00:22]} Be7 {[%emt 0:00:51]} 47. Bf2 {[%emt 0:04:49] [#]} (47. Bd2 $11) 47... Bd6 {[%emt 0:00:25]} ({Black should try} 47... Kg6 $1 $17 48. Kf4 Bg5+ 49. Ke5 Bc1 50. Kxd5 Bxa3) 48. Be3 {[%emt 0:00:52] The position is equal.} Bf8 {[%emt 0:09:34]} 49. Bf2 {[%emt 0:02:43]} Bh6 {[%emt 0:00:16] And now ...Bc1 would win.} 50. Be3 {[%emt 0:00:06] Against Bc1} Bg5 {[%emt 0:00:04]} 51. Bxg5 {[%emt 0:01:31]} Kxg5 {[%emt 0:00:05] KP-KP} 52. Ke3 {[%emt 0:00:39]} Kg4 {[%emt 0:00:05]} (52... Kf5 $5) 53. Kf2 {[%emt 0:00:03]} Kf5 {[%emt 0:00:36]} 54. Kf3 {[%emt 0:00:28]} Kg5 {[%emt 0:00:06]} 55. Ke3 {[%emt 0:00:05]} Kg4 {[%emt 0:00:02]} (55... Kf5 $5) 56. Kf2 {[%emt 0:00:05]} h4 {[%emt 0:00:15]} 57. gxh4 {[%emt 0:00:08]} Kxh4 {[%emt 0:00:04]} 58. Kf3 {[%emt 0:00:07] Intending Kf4 and mate.} Kg5 {[%emt 0:00:05]} 59. Kg3 $1 {[%emt 0:00:05]} Kf5 {[%emt 0:00:04] ( -> ...Ke4)} 60. Kf3 {[%emt 0:00:05]} Kg5 $1 {[%emt 0:00:35] Weighted Error Value: White=0.12 (very precise) /Black=0.07 (flawless)} 1/2-1/2

[Event "SVK ECo-C Extraliga 2021-22"]
[Site "Slovakia"]
[Date "2022.05.08"]
[Round "8.2"]
[White "Jurcik, Marian"]
[Black "Hrabusa, Matej"]
[Result "1-0"]
[ECO "B92"]
[WhiteElo "2407"]
[BlackElo "2361"]
[Annotator "TA"]
[PlyCount "87"]
[EventDate "2021.10.21"]
[EventType "team-tourn"]
[EventCountry "SVK"]
[SourceTitle "playchess.com"]
[Source "ChessBase"]
[SourceQuality "1"]
[TimeControl "40/5400+30:1800+30"]

{[%evp 18,87,4,14,6,18,16,18,22,0,3,0,17,-2,13,19,15,0,22,8,36,7,45,19,39,18,41,0,0,0,0,0,0,0,0,0,86,79,88,79,125,97,114,118,107,121,163,168,163,163,152,169,169,181,321,338,336,358,322,330,319,325,491,487,722,696,29992,29992,29992,29993,29993,29994]} 1. e4 {[%emt 0:00:04]} c5 {[%emt 0:00:05]} 2. Nf3 {[%emt 0:00:18]} d6 {[%emt 0:00:06]} 3. d4 {[%emt 0:00:11]} cxd4 {[%emt 0:00:05]} 4. Nxd4 {[%emt 0:00:09]} Nf6 {[%emt 0:00:07]} 5. Nc3 {[%emt 0:00:09]} a6 {[%emt 0:00:06]} 6. Be2 {[%emt 0:00:31]} e5 {[%emt 0:00:07]} 7. Nf3 {[%emt 0:00:08]} Be7 {[%emt 0:02:14]} 8. Bg5 {[%emt 0:01:55]} Nbd7 {[%emt 0:03:35]} 9. a4 $1 {[%emt 0:01:22] 9.a4 is better than 9.0-0.} O-O {[%emt 0:02:29]} 10. O-O {[%emt 0:00:49]} h6 {[%emt 0:10:58] B92: Sicilian Najdorf: 6 Be2.} 11. Be3 {[%emt 0:02:22]} Ng4 {[%emt 0:00:57]} 12. Bc1 {[%emt 0:01:34]} Ngf6 {[%emt 0:01:14] The position is equal.} 13. Be3 {[%emt 0:03:29]} Ng4 {[%emt 0:00:09]} 14. Bc1 {[%emt 0:00:09]} Ngf6 {[%emt 0:00:35]} 15. b3 {[%emt 0:00:04]} Nc5 {[%emt 0:03:56]} 16. Nd2 {[%emt 0:00:28]} Be6 {[%emt 0:03:03]} 17. Bb2 {[%emt 0:04:20]} Qc7 {[%emt 0:06:23]} 18. Re1 {[%emt 0:03:32]} Rac8 {[%emt 0:07:32]} 19. Bf3 {[%emt 0:15:00]} Rfd8 {[%emt 0:05:09] [#]} 20. Qe2 $146 {[%emt 0:02:32]} ({Predecessor:} 20. a5 Qc6 21. Qe2 Ncd7 22. Red1 Nf8 23. Nf1 Ng6 24. g3 Rc7 25. Ne3 Rdc8 26. Ncd5 Bxd5 27. exd5 Qd7 28. c4 {0-1 (72) Grischuk,A (2766)-Vachier Lagrave,M (2779) Saint Louis 2018}) 20... Bd7 {[%emt 0:05:32]} 21. Nc4 {[%emt 0:15:50][%cal Bd2c4,Bc4e3,Be3f5,Bf5d4,Bd4e2,Be2c3,Bc3d5][%mdl 32]} Ne6 {[%emt 0:05:21]} 22. Qd3 {[%emt 0:05:23]} (22. a5 $5 {[%cal Rc4b6]}) 22... b5 {[%emt 0:04:21]} 23. axb5 {[%emt 0:02:30]} axb5 {[%emt 0:00:14]} 24. Ne3 {[%emt 0:00:45]} Nf4 {[%emt 0:01:03]} 25. Qd2 {[%emt 0:01:53]} b4 {[%emt 0:06:05]} 26. Na2 {[%emt 0:04:19]} Bc6 {[%emt 0:10:35]} (26... d5 $11 27. exd5 (27. Nxd5 $2 N6xd5 28. exd5 Qxc2 $17) 27... e4) 27. Nf5 $16 {[%emt 0:01:40] White now steadily converts the win.} ({Wrong is} 27. Qxb4 $2 d5 28. Nxd5 N6xd5 $19) (27. Nxb4 $6 Bxe4 28. Bxe4 Nxe4 $11) 27... Bf8 {[%emt 0:02:42][%cal Oc6e4]} 28. Nxb4 {[%emt 0:00:40]} g6 {[%emt 0:08:01] [#]} ({Black should play} 28... Bb7) 29. Nd4 $1 {[%emt 0:04:35][%mdl 512] White is more active.} Be8 {[%emt 0:03:56]} (29... Bd7 30. Ne2) 30. Ne2 {[%emt 0:03:17]} Ne6 {[%emt 0:02:18]} 31. Nc3 {[%emt 0:05:33]} Ng5 {[%emt 0:03:35] [#]} 32. Bd1 $1 {[%emt 0:01:25]} Qb7 {[%emt 0:00:19]} 33. Nbd5 {[%emt 0:01:34]} Nxd5 {[%emt 0:01:21]} 34. Nxd5 {[%emt 0:00:02]} ({Don't take} 34. exd5 f5 $16) 34... Bc6 {[%emt 0:00:43][%cal Og5e4]} 35. c4 {[%emt 0:00:44]} Rb8 {[%emt 0:00:58]} (35... Bg7 $142 36. Bc2 Re8) 36. f4 $18 {[%emt 0:02:14]} Bxd5 {[%emt 0:00:14]} 37. exd5 {[%emt 0:00:32]} ({Don't do} 37. cxd5 Nh7 38. fxe5 Bg7 39. exd6 Qb6+ 40. Kh1 Bxb2 41. Qxb2 Qxd6 $18) 37... exf4 {[%emt 0:02:03]} 38. Qc3 {[%emt 0:01:46][%csl Gb2][%cal Rc3h8]} f6 {[%emt 0:00:07]} 39. Qxf6 {[%emt 0:01:00]} Bg7 {[%emt 0:00:35] Against Qh8+} (39... Qg7 $142 40. Qxd8 Rxd8 41. Bxg7 Bxg7) 40. Qxg6 {[%emt 0:01:45]} Qb6+ {[%emt 0:00:11]} (40... Qf7 $142 41. Qxg7+ Qxg7 42. Bxg7 Kxg7 43. Ra7+ Kg8) 41. Kf1 {[%emt 0:31:02][%csl Gb2][%cal Rg6g7]} Rb7 {[%emt 0:31:20]} 42. Re8+ {[%emt 0:01:20] White mates.} Rxe8 {[%emt 0:00:00]} 43. Qxe8+ {[%emt 0:00:00]} Bf8 {[%emt 0:00:00]} 44. Qg6+ {[%emt 0:00:00] Weighted Error Value: White=0.08 (flawless) /Black=0.44} 1-0